lending/lending_fUSD_20240219
["ID","MTS","AMOUNT","RATE_DAILY","PERIOD"]
[314451856,1708361512245,-387.88282377,0.000477,60]
[314451857,1708361512254,-2000.0,0.000477,60]
[314451858,1708361512264,-300.0,0.000477,30]
[314451859,1708361512273,-4500.0,0.000477,7]
[314451860,1708361512282,-156.8981365,0.00047724,30]
[314451861,1708361512292,-154.0583357,0.00047759,30]
[314451862,1708361512301,-2000.0,0.0004776,5]
[314451863,1708361512310,-2000.0,0.0004776,5]
[314451864,1708361512320,-20453.96752064,0.0004777,30]
[314451865,1708361512329,-290.3617882,0.0004777,30]
[314451866,1708361512339,-151.021624,0.00047798,44]
[314451867,1708361512348,-151.021924,0.00047798,43]
[314451868,1708361512358,-151.020876,0.00047798,42]
[314451869,1708361512367,-3000.0,0.000478,60]
[314451870,1708361512377,-247.85755619,0.000478,35]
[314451871,1708361512386,-749.22347906,0.000478,35]
[314451872,1708361512396,-1163.479904,0.000478,120]
[314451873,1708361512406,-726.24,0.000478,5]
[314451874,1708361512416,-726.24,0.000478,5]
[314451875,1708361512425,-726.24,0.000478,5]
[314451876,1708361512435,-726.24,0.000478,5]
[314451877,1708361512446,-726.24,0.000478,5]
[314451878,1708361512456,-726.24,0.000478,5]
[314451879,1708361512466,-726.24,0.000478,5]
[314451880,1708361512476,-726.24,0.000478,5]
[314451881,1708361512486,-726.24,0.000478,5]
[314451882,1708361512499,-726.24,0.000478,5]
[314451883,1708361512509,-726.24,0.000478,5]
[314451884,1708361512519,-726.24,0.000478,5]
[314451885,1708361512528,-726.24,0.000478,5]
[314451886,1708361512539,-726.24,0.000478,5]
[314451887,1708361512549,-726.24,0.000478,5]
[314451888,1708361512559,-726.24,0.000478,5]
[314451889,1708361512571,-726.24,0.000478,5]
[314451890,1708361512582,-726.24,0.000478,5]
[314451891,1708361512592,-726.24,0.000478,5]
[314451892,1708361512602,-726.24,0.000478,5]
[314451893,1708361512612,-152.55,0.000478,5]
[314451894,1708361512622,-152.55,0.000478,5]
[314451895,1708361512631,-152.55,0.000478,5]
[314451896,1708361512641,-152.55,0.000478,5]
[314451897,1708361512650,-152.55,0.000478,5]
[314451898,1708361512660,-152.55,0.000478,5]
[314451899,1708361512669,-152.55,0.000478,5]
[314451900,1708361512679,-152.55,0.000478,5]
[314451901,1708361512690,-151.0,0.000478,19]
[314451902,1708361512700,-500.0,0.00047826,14]
[314451903,1708361512710,-150.015539,0.00047857,30]
[314451904,1708361512720,-56838.425852,0.0004788,30]
[314451905,1708361512730,-3367.226534,0.0004788,30]
[314451906,1708361512739,-1563.297712,0.0004788,30]
[314451907,1708361512753,-4831.827401,0.0004788,30]
[314451908,1708361512763,-4526.381373,0.0004788,30]
[314451909,1708361512772,-1277.744694,0.0004788,30]
[314451910,1708361512784,-2198.629977,0.0004788,30]
[314451911,1708361512793,-4834.281719,0.0004788,30]
[314451912,1708361512803,-174.0,0.0004789,2]
[314451913,1708361512813,-6756.73251376,0.000479,120]
[314451914,1708361512822,-1100.0,0.000479,30]
[314451915,1708361512831,-258.6339164,0.000479,120]
[314451916,1708361512843,-50000.0,0.000479,60]
[314451917,1708361512852,-50000.0,0.000479,60]
[314451918,1708361512862,-26196.67347765,0.000479,60]
[314451919,1708361512872,-200.0,0.000479,23]
[314451920,1708361512882,-344.78,0.00047918,120]
[314451921,1708361512892,-465.0,0.00047926,90]
[314451922,1708361512902,-230.12520523,0.00047929,7]
[314451923,1708361512912,-313.74014338,0.00047929,7]
[314451924,1708361512921,-214768.156561,0.00047934,30]
[314451925,1708361512931,-500.0,0.00047945,18]
[314451926,1708361512944,-500.0,0.00047945,18]
[314451927,1708361512954,-500.0,0.00047945,18]
[314451928,1708361512964,-534.84,0.00047945,2]
[314451929,1708361512973,-500.0,0.00047945,18]
[314451930,1708361512984,-500.0,0.00047945,18]
[314451931,1708361512996,-457.10392578,0.00047945,18]
[314451932,1708361513006,-800.0,0.00047945,2]
[314451933,1708361513016,-500.0,0.00047945,18]
[314451934,1708361513026,-500.0,0.00047945,60]
[314451935,1708361513037,-1107.1,0.00047945,18]
[314451936,1708361513046,-500.0,0.00047945,18]
[314451937,1708361513057,-500.0,0.00047945,18]
[314451938,1708361513067,-500.0,0.00047945,18]
[314451939,1708361513077,-500.0,0.00047945,18]
[314451940,1708361513087,-590.10767268,0.00047945,18]
[314451941,1708361513096,-429.18,0.00047945,18]
[314451942,1708361513107,-375.6828423,0.00047945,18]
[314451943,1708361513117,-500.0,0.00047945,18]
[314451944,1708361513126,-500.0,0.00047945,18]
[314451945,1708361513136,-500.0,0.00047945,18]
[314451946,1708361513145,-311.81863596,0.00047945,18]
[314451947,1708361513156,-500.0,0.00047945,18]
[314451948,1708361513166,-276.37,0.00047945,18]
[314451949,1708361513176,-500.0,0.00047945,18]
[314451950,1708361513186,-205.59310854,0.00047945,18]
[314451951,1708361513196,-500.0,0.00047945,2]
[314451952,1708361513206,-500.0,0.00047945,18]
[314451953,1708361513216,-2448.33,0.00047945,2]
[314451954,1708361513226,-500.0,0.00047945,18]
[314451955,1708361513236,-500.0,0.00047945,2]
[314451956,1708361513247,-500.0,0.00047945,18]
[314451957,1708361513256,-500.0,0.00047945,18]
[314451958,1708361513266,-491.9803671,0.00047945,18]
[314451959,1708361513276,-394.15,0.00047945,18]
[314451960,1708361513286,-500.0,0.00047945,18]
[314451961,1708361513295,-500.0,0.00047945,18]
[314451962,1708361513306,-500.0,0.00047945,18]
[314451963,1708361513316,-500.0,0.00047945,18]
[314451964,1708361513325,-493.4,0.00047945,18]
[314451965,1708361513335,-500.0,0.00047945,18]
[314451966,1708361513344,-500.0,0.00047945,18]
[314451967,1708361513354,-500.0,0.00047945,18]
[314451968,1708361513364,-500.0,0.00047945,18]
[314451969,1708361513375,-500.0,0.00047945,18]
[314451970,1708361513385,-516.31,0.00047945,18]
[314451971,1708361513394,-500.0,0.00047945,18]
[314451972,1708361513403,-1000.0,0.00047945,7]
[314451973,1708361513413,-500.0,0.00047945,18]
[314451974,1708361513423,-500.0,0.00047945,18]
[314451975,1708361513433,-384.96682309,0.00047945,18]
[314451976,1708361513443,-500.0,0.00047945,18]
[314451977,1708361513453,-1000.0,0.00047945,7]
[314451978,1708361513464,-500.0,0.00047945,18]
[314451979,1708361513473,-500.0,0.00047945,18]
[314451980,1708361513484,-351.7948658,0.00047945,18]
[314451981,1708361513494,-1000.0,0.00047945,10]
[314451982,1708361513507,-500.0,0.00047945,18]
[314451983,1708361513517,-500.0,0.00047945,18]
[314451984,1708361513527,-377.49823084,0.00047945,18]
[314451985,1708361513537,-669.08,0.00047945,18]
[314451986,1708361513547,-527.17,0.00047945,18]
[314451987,1708361513558,-500.0,0.00047945,18]
[314451988,1708361513568,-863.62,0.00047945,2]
[314451989,1708361513577,-500.0,0.00047945,18]
[314451990,1708361513587,-500.0,0.00047945,18]
[314451991,1708361513597,-402.78663686,0.00047945,18]
[314451992,1708361513606,-500.0,0.00047945,2]
[314451993,1708361513616,-500.0,0.00047945,18]
[314451994,1708361513627,-500.0,0.00047945,18]
[314451995,1708361513637,-500.0,0.00047945,18]
[314451996,1708361513647,-500.0,0.00047945,18]
[314451997,1708361513657,-664.1,0.00047945,18]
[314451998,1708361513669,-500.0,0.00047945,18]
[314451999,1708361513679,-500.0,0.00047945,18]
[314452000,1708361513690,-500.0,0.00047945,18]
[314452001,1708361513701,-1317.88,0.00047945,18]
[314452002,1708361513712,-500.0,0.00047945,18]
[314452003,1708361513723,-500.0,0.00047945,18]
[314452004,1708361513734,-500.0,0.00047945,18]
[314452005,1708361513745,-500.0,0.00047945,18]
[314452006,1708361513761,-500.0,0.00047945,18]
[314452007,1708361513772,-401.02202681,0.00047945,18]
[314452008,1708361513783,-500.0,0.00047945,18]
[314452009,1708361513794,-500.0,0.00047945,18]
[314452010,1708361513805,-500.0,0.00047945,18]
[314452011,1708361513816,-500.0,0.00047945,18]
[314452012,1708361513826,-1430.78,0.00047945,18]
[314452013,1708361513840,-500.0,0.00047945,18]
[314452014,1708361513849,-500.0,0.00047945,18]
[314452015,1708361513860,-500.0,0.00047945,18]
[314452016,1708361513870,-701.42,0.00047945,18]
[314452017,1708361513881,-500.0,0.00047945,2]
[314452018,1708361513891,-761.63,0.00047945,18]
[314452019,1708361513902,-500.0,0.00047945,18]
[314452020,1708361513912,-500.0,0.00047945,18]
[314452021,1708361513923,-500.0,0.00047945,18]
[314452022,1708361513933,-552.88,0.00047945,18]
[314452023,1708361513945,-721.95,0.00047945,18]
[314452024,1708361513955,-500.0,0.00047945,18]
[314452025,1708361513966,-1276.36,0.00047945,18]
[314452026,1708361513978,-500.0,0.00047945,18]
[314452027,1708361513991,-693.07,0.00047945,18]
[314452028,1708361514005,-500.0,0.00047945,18]
[314452029,1708361514015,-1511.14,0.00047945,18]
[314452030,1708361514026,-500.0,0.00047945,18]
[314452031,1708361514037,-1587.45,0.00047945,18]
[314452032,1708361514047,-500.0,0.00047945,18]
[314452033,1708361514058,-500.0,0.00047945,14]
[314452034,1708361514069,-500.0,0.00047945,18]
[314452035,1708361514079,-9227.81,0.00047945,18]
[314452036,1708361514090,-500.0,0.00047945,18]
[314452037,1708361514100,-1867.41,0.00047945,18]
[314452038,1708361514110,-1111.54,0.00047945,18]
[314452039,1708361514121,-500.0,0.00047945,18]
[314452040,1708361514131,-947.75,0.00047945,18]
[314452041,1708361514141,-500.0,0.00047945,18]
[314452042,1708361514152,-500.0,0.00047945,18]
[314452043,1708361514163,-500.0,0.00047945,18]
[314452044,1708361514174,-500.0,0.00047945,18]
[314452045,1708361514185,-500.0,0.00047945,18]
[314452046,1708361514196,-500.0,0.00047945,18]
[314452047,1708361514208,-500.0,0.00047945,18]
[314452048,1708361514218,-500.0,0.00047945,18]
[314452049,1708361514230,-1223.17,0.00047945,18]
[314452050,1708361514241,-500.0,0.00047945,18]
[314452051,1708361514255,-500.0,0.00047945,18]
[314452052,1708361514266,-500.0,0.00047945,18]
[314452053,1708361514278,-646.16,0.00047945,18]
[314452054,1708361514289,-697.9,0.00047945,18]
[314452055,1708361514299,-500.0,0.00047945,18]
[314452056,1708361514310,-500.0,0.00047945,18]
[314452057,1708361514320,-500.0,0.00047945,18]
[314452058,1708361514331,-500.0,0.00047945,18]
[314452059,1708361514340,-500.0,0.00047945,18]
[314452060,1708361514350,-500.0,0.00047945,18]
[314452061,1708361514359,-500.0,0.00047945,18]
[314452062,1708361514369,-500.0,0.00047945,18]
[314452063,1708361514379,-500.0,0.00047945,20]
[314452064,1708361514389,-500.0,0.00047945,18]
[314452065,1708361514398,-500.0,0.00047945,18]
[314452066,1708361514408,-566.88898747,0.00047945,18]
[314452067,1708361514417,-500.0,0.00047945,18]
[314452068,1708361514428,-500.0,0.00047945,18]
[314452069,1708361514438,-500.0,0.00047945,18]
[314452070,1708361514447,-546.07,0.00047945,18]
[314452071,1708361514456,-500.0,0.00047945,18]
[314452072,1708361514466,-500.0,0.00047945,18]
[314452073,1708361514476,-500.0,0.00047945,18]
[314452074,1708361514485,-500.0,0.00047945,18]
[314452075,1708361514497,-580.66,0.00047945,18]
[314452076,1708361514507,-500.0,0.00047945,18]
[314452077,1708361514517,-500.0,0.00047945,18]
[314452078,1708361514527,-575.33,0.00047945,18]
[314452079,1708361514536,-877.69,0.00047945,18]
[314452080,1708361514545,-355.95804297,0.00047945,18]
[314452081,1708361514555,-500.0,0.00047945,18]
[314452082,1708361514564,-2245.54,0.00047945,18]
[314452083,1708361514574,-500.0,0.00047945,18]
[314452084,1708361514584,-500.0,0.00047945,18]
[314452085,1708361514594,-1052.4,0.00047945,18]
[314452086,1708361514604,-500.0,0.00047945,18]
[314452087,1708361514613,-500.0,0.00047945,18]
[314452088,1708361514623,-500.0,0.00047945,18]
[314452089,1708361514633,-568.28,0.00047945,18]
[314452090,1708361514643,-500.0,0.00047945,18]
[314452091,1708361514653,-643.75,0.00047945,18]
[314452092,1708361514663,-500.32,0.00047945,18]
[314452093,1708361514673,-500.0,0.00047945,18]
[314452094,1708361514683,-500.0,0.00047945,18]
[314452095,1708361514693,-500.0,0.00047945,18]
[314452096,1708361514703,-574.24,0.00047945,18]
[314452097,1708361514713,-500.0,0.00047945,18]
[314452098,1708361514723,-500.0,0.00047945,18]
[314452099,1708361514733,-500.0,0.00047945,18]
[314452100,1708361514743,-500.0,0.00047945,18]
[314452101,1708361514756,-500.0,0.00047945,18]
[314452102,1708361514766,-500.0,0.00047945,18]
[314452103,1708361514776,-500.0,0.00047945,18]
[314452104,1708361514786,-500.0,0.00047945,18]
[314452105,1708361514797,-500.0,0.00047945,18]
[314452106,1708361514807,-599.06546071,0.00047945,18]
[314452107,1708361514817,-500.0,0.00047945,18]
[314452108,1708361514827,-503.07,0.00047945,18]
[314452109,1708361514840,-500.0,0.00047945,18]
[314452110,1708361514850,-500.0,0.00047945,18]
[314452111,1708361514859,-500.0,0.00047945,18]
[314452112,1708361514869,-500.0,0.00047945,18]
[314452113,1708361514879,-1010.7,0.00047945,18]
[314452114,1708361514889,-500.0,0.00047945,18]
[314452115,1708361514899,-500.0,0.00047945,18]
[314452116,1708361514909,-500.0,0.00047945,18]
[314452117,1708361514920,-500.0,0.00047945,18]
[314452118,1708361514930,-500.0,0.00047945,18]
[314452119,1708361514942,-500.0,0.00047945,18]
[314452120,1708361514954,-500.0,0.00047945,18]
[314452121,1708361514966,-902.06,0.00047945,18]
[314452122,1708361514976,-500.0,0.00047945,18]
[314452123,1708361514990,-648.25,0.00047945,18]
[314452124,1708361515002,-500.0,0.00047945,18]
[314452125,1708361515013,-500.0,0.00047945,18]
[314452126,1708361515025,-522.17720254,0.00047945,18]
[314452127,1708361515036,-500.0,0.00047945,18]
[314452128,1708361515047,-1429.17,0.00047945,18]
[314452129,1708361515057,-2454.44,0.00047945,18]
[314452130,1708361515068,-500.0,0.00047945,18]
[314452131,1708361515078,-500.0,0.00047945,18]
[314452132,1708361515089,-500.0,0.00047945,18]
[314452133,1708361515099,-500.0,0.00047945,18]
[314452134,1708361515110,-500.0,0.00047945,18]
[314452135,1708361515119,-500.0,0.00047945,18]
[314452136,1708361515129,-587.30944179,0.00047945,18]
[314452137,1708361515140,-643.03377822,0.00047945,18]
[314452138,1708361515150,-500.0,0.00047945,18]
[314452139,1708361515160,-500.0,0.00047945,18]
[314452140,1708361515170,-500.0,0.00047945,18]
[314452141,1708361515181,-500.0,0.00047945,18]
[314452142,1708361515192,-531.08,0.00047945,18]
[314452143,1708361515202,-500.0,0.00047945,18]
[314452144,1708361515213,-500.0,0.00047945,18]
[314452145,1708361515224,-500.0,0.00047945,18]
[314452146,1708361515234,-500.0,0.00047945,18]
[314452147,1708361515244,-526.21,0.00047945,18]
[314452148,1708361515257,-500.0,0.00047945,7]
[314452149,1708361515268,-648.7205962,0.00047945,18]
[314452150,1708361515278,-500.0,0.00047945,18]
[314452151,1708361515289,-772.92,0.00047945,18]
[314452152,1708361515300,-500.0,0.00047945,18]
[314452153,1708361515310,-1184.72,0.00047945,18]
[314452154,1708361515321,-2181.93,0.00047945,18]
[314452155,1708361515331,-500.0,0.00047945,18]
[314452156,1708361515340,-1164.86,0.00047945,18]
[314452157,1708361515350,-500.0,0.00047945,2]
[314452158,1708361515361,-500.0,0.00047945,18]
[314452159,1708361515371,-527.14,0.00047945,18]
[314452160,1708361515381,-694.62,0.00047945,18]
[314452161,1708361515391,-1394.39,0.00047945,18]
[314452162,1708361515402,-533.5923081,0.00047945,18]
[314452163,1708361515411,-500.0,0.00047945,18]
[314452164,1708361515422,-500.0,0.00047945,18]
[314452165,1708361515433,-500.0,0.00047945,18]
[314452166,1708361515444,-500.0,0.00047945,18]
[314452167,1708361515453,-547.96715968,0.00047945,18]
[314452168,1708361515464,-500.0,0.00047945,18]
[314452169,1708361515474,-600.41323743,0.00047945,18]
[314452170,1708361515484,-500.0,0.00047945,18]
[314452171,1708361515494,-721.6,0.00047945,18]
[314452172,1708361515506,-500.0,0.00047945,18]
[314452173,1708361515516,-500.0,0.00047945,18]
[314452174,1708361515526,-553.10654584,0.00047945,18]
[314452175,1708361515536,-500.0,0.00047945,18]
[314452176,1708361515546,-2768.72,0.00047945,18]
[314452177,1708361515556,-500.0,0.00047945,18]
[314452178,1708361515566,-500.0,0.00047945,18]
[314452179,1708361515576,-526.05549379,0.00047945,18]
[314452180,1708361515586,-1855.51,0.00047945,18]
[314452181,1708361515597,-500.0,0.00047945,18]
[314452182,1708361515607,-500.0,0.00047945,18]
[314452183,1708361515790,-549.13196659,0.00047945,18]
[314452184,1708361515801,-181.942633,0.00047945,14]
[314452185,1708361515811,-157.77434393,0.00047956,30]
[314452186,1708361515821,-2206.82,0.00047961,30]
[314452187,1708361515831,-2206.82,0.00047961,30]
[314452188,1708361515841,-1216.909776,0.00047967,2]
[314452189,1708361515852,-67960.5450645,0.00047967,2]
[314452190,1708361515862,-4484.959371,0.00047967,2]
[314452191,1708361515872,-10390.9366202,0.00047967,2]
[314452192,1708361515881,-300.0,0.0004797,3]
[314452193,1708361515891,-300.0,0.0004797,3]
[314452194,1708361515901,-300.0,0.0004797,3]
[314452195,1708361515910,-400.0,0.0004797,3]
[314452196,1708361515920,-400.0,0.0004797,3]
[314452197,1708361515930,-400.0,0.0004797,3]
[314452198,1708361515941,-500.0,0.00047975,14]
[314452199,1708361515951,-4299.17669436,0.0004798,7]
[314452200,1708361515960,-200.0,0.00047987,75]
[314452201,1708361515970,-5250.0,0.0004799,29]
[314452202,1708361515980,-5250.0,0.0004799,30]
[314452203,1708361515994,-257.0,0.0004799,2]
[314452204,1708361516005,-5000.0,0.00047994,2]
[314452205,1708361516016,-100000.0,0.00048,38]
[314452206,1708361516026,-500.0,0.00048,30]
[314452207,1708361516036,-200.0,0.00048,120]
[314452208,1708361516045,-2064.0,0.00048,30]
[314452209,1708361516056,-291.53,0.00048,15]
[314452210,1708361516066,-56190.51807061,0.00048,30]
[314452211,1708361516077,-155.192623,0.00048,2]
[314452212,1708361516087,-358.99650337,0.00048,2]
[314452213,1708361516096,-2064.0,0.00048,30]
[314452214,1708361516105,-228.02964788,0.00048,10]
[314452215,1708361516115,-1858084.38213194,0.00048,30]
[314452216,1708361516124,-2040.90558036,0.00048,30]
[314452217,1708361516135,-24414.0,0.00048,30]
[314452218,1708361516145,-300.0,0.00048,48]
[314452219,1708361516154,-34815.37034219,0.00048,2]
[314452220,1708361516164,-56973.0,0.00048,10]
[314452221,1708361516173,-1000.0,0.00048,100]
[314452222,1708361516183,-165.00009144,0.00048,30]
[314452223,1708361516194,-20000.0,0.00048,60]
[314452224,1708361516203,-20166.45626857,0.00048,90]
[314452225,1708361516212,-10000.0,0.00048,120]
[314452226,1708361516222,-10000.0,0.00048,120]
[314452227,1708361516232,-10000.0,0.00048,120]
[314452228,1708361516242,-724.0,0.00048,2]
[314452229,1708361516257,-10162.11888169,0.00048,120]
[314452230,1708361516268,-1655.42343398,0.00048,6]
[314452231,1708361516279,-2053.0,0.00048,30]
[314452232,1708361516289,-211.0,0.00048,30]
[314452233,1708361516299,-218.0,0.00048,30]
[314452234,1708361516310,-500.0,0.00048,2]
[314452235,1708361516320,-2539143.79438846,0.00048,30]
[314452236,1708361516751,-500.0,0.00046575,18]
[314452237,1708361516762,-500.0,0.00046849,18]
[314452238,1708361516772,-2.454848,0.00047671,18]
[314452239,1708361516785,-291.43,0.00047671,18]
[314452240,1708361517226,-0.01322596,0.000438,2]
[314452241,1708361517283,-8.4354297,0.000438,2]
[314452242,1708361517342,-150.0,0.00039514,2]
[314452243,1708361517353,-1991.55134434,0.000438,2]
[314452244,1708361517363,-500.0,0.00046575,18]
[314452245,1708361517374,-500.0,0.00046575,18]
[314452246,1708361517384,-500.0,0.00046575,18]
[314452247,1708361517393,-500.0,0.00046849,18]
[314452248,1708361517404,-500.0,0.00046849,18]
[314452249,1708361517415,-500.0,0.00046849,18]
[314452250,1708361517449,-500.84140211,0.00047123,18]
[314452251,1708361517459,-536.62991679,0.00047123,18]
[314452252,1708361517469,-500.0,0.00047123,18]
[314452253,1708361517479,-500.0,0.00047397,18]
[314452254,1708361517489,-509.92863706,0.00047397,18]
[314452255,1708361517503,-206.115152,0.00047671,18]
[314452256,1708361517513,-500.0,0.00047671,18]
[314452257,1708361517523,-500.0,0.00047945,18]
[314452258,1708361517532,-295226.88236705,0.00048,30]
[314452259,1708361517544,-15870.59896279,0.00048,30]
[314452260,1708361517666,8073.59420274,0.00033296,2]
[314452261,1708361518301,-5600.0,0.00039799,4]
[314452262,1708361518318,-151.0,0.0004,14]
[314452263,1708361518333,-151.0,0.0004,14]
[314452264,1708361518350,-151.0,0.00040005,14]
[314452265,1708361518366,-151.0,0.00040535,14]
[314452266,1708361518379,-2884.45831335,0.00043428,5]
[314452267,1708361518391,-500.0,0.00046575,18]
[314452268,1708361518404,-500.0,0.00046575,18]
[314452269,1708361518419,-500.0,0.00046575,18]
[314452270,1708361518434,-500.0,0.00046575,18]
[314452271,1708361518447,-500.0,0.00046575,18]
[314452272,1708361518460,-528.44671761,0.00046575,18]
[314452273,1708361518476,-500.0,0.00046575,18]
[314452274,1708361518491,-500.0,0.00046849,18]
[314452275,1708361518509,-500.0,0.00046849,18]
[314452276,1708361518524,-500.0,0.00046849,18]
[314452277,1708361518539,-500.0,0.00046849,18]
[314452278,1708361518553,-500.0,0.00047123,18]
[314452279,1708361518568,-500.0,0.00047123,18]
[314452280,1708361518582,-500.0,0.00047123,18]
[314452281,1708361518597,-500.0,0.00047397,18]
[314452282,1708361518612,-22704.6259002,0.00048,30]
[314452283,1708361519480,385.55466859,0.00035809,7]
[314452284,1708361522292,39957.92182815,0.00023,2]
[314452285,1708361522315,1043.64430324,0.00023,2]
[314452286,1708361522337,586.58096012,0.00023,2]
[314452287,1708361522360,22184.112,0.00023,2]
[314452288,1708361522384,5757.1516,0.00023,2]
[314452289,1708361522407,140565.35,0.00023,2]
[314452290,1708361522437,904478.18055869,0.00023,2]
[314452291,1708361525030,1263.61529473,0.0001,2]
[314452292,1708361525370,4168.0,0.00022999,2]
[314452293,1708361526709,150.0,0.00021,4]
[314452294,1708361527239,4168.0,0.00022998,2]
[314452299,1708361586719,600.0,0.000225,2]
[314452300,1708361609306,17474.23827395,0.00023,30]
[314452301,1708361635172,818708.40847455,0.00023,2]
[314452305,1708362439091,-494.277947,0.0002576,2]
[314452306,1708362439111,-185.74701564,0.0002579,2]
[314452307,1708362439132,-170.97242843,0.0002589,2]
[314452308,1708362548123,-4168.0,0.00026199,2]
[314452309,1708362548142,-267.8824,0.000262,2]
[314452310,1708362548162,-2594.07817716,0.000263,2]
[314452311,1708362548181,-154.88192846,0.000264,2]
[314452312,1708362548202,-150.0,0.00026499,2]
[314452313,1708362548221,-414.2,0.000265,2]
[314452314,1708362548245,-19561.10333478,0.000265,2]
[314452315,1708362548265,-6135.8191596,0.0002689,2]
[314452316,1708362553104,-3287.3829,0.0002689,2]
[314452317,1708362555102,-23457.4029404,0.0002689,2]
[314452318,1708362555123,-170.24,0.00027022,2]
[314452319,1708362555142,-1109.16533849,0.000272,2]
[314452320,1708362555162,-154.88192845,0.00027517,2]
[314452321,1708362555181,-1764.92679266,0.00028,2]
[314452322,1708362558095,-8444.85373523,0.00028,2]
[314452323,1708362558116,-207.03040392,0.000281,2]
[314452324,1708362558136,-26477.32,0.000281,2]
[314452325,1708362558156,-3587.21,0.000281,2]
[314452326,1708362558175,-184.64768247,0.00028533,2]
[314452327,1708362558198,-154.88192845,0.00028633,2]
[314452328,1708362558219,-173.0,0.00029149,2]
[314452329,1708362558243,-213.18406279,0.00029749,2]
[314452330,1708362558264,-154.88192845,0.0002975,2]
[314452331,1708362558285,-154.88192845,0.00030867,2]
[314452332,1708362558311,-154.88192845,0.00031983,2]
[314452333,1708362558332,-135.12340179,0.0003256,2]
[314452334,1708362565100,-94.72659821,0.0003256,2]
[314452335,1708362565122,-312.89,0.00032746,2]
[314452336,1708362565141,-159.64,0.00032837,2]
[314452337,1708362565159,-6208.0,0.000329,2]
[314452338,1708362565177,-280.62228,0.00033,3]
[314452339,1708362565197,-154.88192845,0.000331,2]
[314452340,1708362565217,-373.63,0.00033151,2]
[314452341,1708362565241,-400.0,0.00033154,2]
[314452342,1708362565262,-153.22,0.00033223,2]
[314452343,1708362565284,-3773.92,0.00033363,2]
[314452344,1708362565303,-16001.36,0.00033363,2]
[314452345,1708362565325,-299.34,0.0003406,2]
[314452346,1708362565344,-184.64768245,0.00034102,2]
[314452347,1708362565363,-10000.0,0.00034145,37]
[314452348,1708362565383,-6208.36289881,0.000342,2]
[314452349,1708362565406,-154.88192845,0.00034217,2]
[314452350,1708362565426,-2077.0,0.000346,3]
[314452351,1708362565445,-1400.598,0.000346,2]
[314452352,1708362565464,-16811.0,0.000347,3]
[314452353,1708362565483,-999.999999,0.00035,5]
[314452354,1708362565502,-3356.30427104,0.00035,2]
[314452355,1708362565521,-228.59647435,0.00035008,7]
[314452356,1708362565541,-154.88192845,0.00035333,2]
[314452357,1708362565560,-373.63,0.00035415,2]
[314452358,1708362587673,177.14,0.00017111,2]
[314452371,1708362632223,-154.88192845,0.0003645,2]
[314452372,1708362632234,-568.95,0.00036495,2]
[314452373,1708362632248,-411.04353921,0.00036798,2]
[314452374,1708362632266,-511.78296821,0.00036798,2]